[Event "Eurasia Open Cup 2019"]
[Site "Ekaterinburg"]
[Date "2019.08.07"]
[Round "7.13"]
[White "Drygalov, Sergey"]
[Black "Fotin, Vladimir"]
[Result "1-0"]
[ECO "C72"]
[WhiteElo "2492"]
[BlackElo "2368"]
[Annotator "ChessBase"]
[PlyCount "55"]
[EventDate "2019.07.31"]
[EventType "swiss"]
[EventCountry "RUS"]
[SourceTitle "playchess.com"]
[Source "ChessBase"]
[SourceQuality "1"]
[TimeControl "5400+30"]

1. e4 {[%emt 0:00:00]} e5 {[%emt 0:04:47]} 2. Nf3 {[%emt 0:00:00]} Nc6 {[%emt 0:00:00]} 3. Bb5 {[%emt 0:00:00]} a6 {[%emt 0:01:09]} 4. Ba4 {[%emt 0:00:00]} d6 {[%emt 0:00:09]} 5. O-O {[%emt 0:05:17]} Bd7 {[%emt 0:01:18]} 6. c3 {[%emt 0:00:51]} g5 {[%emt 0:02:02]} 7. d4 {[%emt 0:02:07]} g4 {[%emt 0:00:00]} 8. Ne1 {[%emt 0:01:42]} exd4 {[%emt 0:07:50]} 9. cxd4 {[%emt 0:00:18]} Bg7 {[%emt 0:00:26]} 10. Be3 {[%emt 0:04:14]} Nge7 {[%emt 0:04:48]} 11. f3 {[%emt 0:02:01]} f5 {[%emt 0:21:10]} 12. Bb3 {[%emt 0:15:44]} f4 {[%emt 0:09:17]} 13. fxg4 {[%emt 0:03:55]} Ng6 {[%emt 0:00:00]} 14. Bf2 {[%emt 0:04:02]} Qf6 {[%emt 0:08:53]} 15. Nc3 {[%emt 0:01:41]} Nge7 {[%emt 0:00:00]} 16. Nd5 {[%emt 0:20:37]} Nxd5 {[%emt 0:01:20]} 17. Bxd5 {[%emt 0:00:02]} O-O-O {[%emt 0:25:14]} 18. Nf3 {[%emt 0:04:15]} Bxg4 {[%emt 0:01:25]} 19. Bxc6 {[%emt 0:03:12]} bxc6 {[%emt 0:00:04]} 20. Rc1 {[%emt 0:02:36]} Qg6 {[%emt 0:03:01]} 21. Qd3 {[%emt 0:00:26]} Kd7 {[%emt 0:03:32]} 22. Nh4 {[%emt 0:07:47]} Qh5 {[%emt 0:00:39]} 23. Qc4 {[%emt 0:00:08]} Ke8 {[%emt 0:03:17]} 24. Qxc6+ {[%emt 0:00:43]} Bd7 {[%emt 0:00:21]} 25. Qxc7 {[%emt 0:01:44]} Bf6 {[%emt 0:00:02]} 26. Qxd6 {[%emt 0:00:00]} Be7 {[%emt 0:01:12]} 27. Qxf4 {[%emt 0:00:20]} Rf8 {[%emt 0:00:30]} 28. Nf5 {[%emt 0:00:06]} 1-0

[Event "Eurasia Open Cup 2019"]
[Site "Ekaterinburg"]
[Date "2019.08.07"]
[Round "7.14"]
[White "Balashov, Yuri S"]
[Black "Cherniaev, Alexander"]
[Result "0-1"]
[ECO "E61"]
[WhiteElo "2474"]
[BlackElo "2396"]
[Annotator "ChessBase"]
[PlyCount "64"]
[EventDate "2019.07.31"]
[EventType "swiss"]
[EventCountry "RUS"]
[SourceTitle "playchess.com"]
[Source "ChessBase"]
[SourceQuality "1"]
[TimeControl "5400+30"]

1. d4 {[%emt 0:00:00]} Nf6 {[%emt 0:00:00]} 2. Nf3 {[%emt 0:00:00]} g6 {[%emt 0:00:00]} 3. c4 {[%emt 0:00:00]} d6 {[%emt 0:00:37]} 4. Nc3 {[%emt 0:00:25]} Bf5 {[%emt 0:00:40]} 5. g3 {[%emt 0:04:25]} Ne4 {[%emt 0:00:12]} 6. Nd2 {[%emt 0:08:07]} Nxd2 {[%emt 0:05:47]} 7. Bxd2 {[%emt 0:01:13]} Bg7 {[%emt 0:00:08]} 8. e4 {[%emt 0:00:05]} Bd7 {[%emt 0:00:15]} 9. Be3 {[%emt 0:00:42]} O-O {[%emt 0:04:49]} 10. h4 {[%emt 0:09:09]} Nc6 {[%emt 0:02:14]} 11. f4 {[%emt 0:01:05]} e5 {[%emt 0:01:03]} 12. d5 {[%emt 0:06:09]} Nd4 {[%emt 0:02:17]} 13. fxe5 {[%emt 0:04:03]} dxe5 {[%emt 0:00:04]} 14. Bg2 {[%emt 0:01:01]} c5 {[%emt 0:05:49]} 15. O-O {[%emt 0:06:20]} f5 {[%emt 0:02:30]} 16. Qd3 {[%emt 0:01:15]} f4 {[%emt 0:01:07]} 17. Bxd4 {[%emt 0:01:00]} exd4 {[%emt 0:02:13]} 18. Ne2 {[%emt 0:00:00]} fxg3 {[%emt 0:00:54]} 19. Rxf8+ {[%emt 0:02:06]} Qxf8 {[%emt 0:00:06]} 20. Qxg3 {[%emt 0:00:12]} Qe7 {[%emt 0:02:13]} 21. Rf1 {[%emt 0:02:25]} d3 {[%emt 0:10:21]} 22. Qxd3 {[%emt 0:08:14]} Qxh4 {[%emt 0:05:13]} 23. Rf4 {[%emt 0:04:32]} Qg5 {[%emt 0:08:09]} 24. Qe3 {[%emt 0:00:51]} Qe7 {[%emt 0:02:25]} 25. Bh3 {[%emt 0:07:23]} Bxh3 {[%emt 0:06:44]} 26. Qxh3 {[%emt 0:00:08]} Bxb2 {[%emt 0:00:19]} 27. Qg2 {[%emt 0:05:17]} Bg7 {[%emt 0:04:25]} 28. Rg4 {[%emt 0:06:01]} Rf8 {[%emt 0:06:33]} 29. Nf4 {[%emt 0:00:37]} Qe5 {[%emt 0:00:00]} 30. Ne6 {[%emt 0:02:15]} Qa1+ {[%emt 0:00:00]} 31. Kh2 {[%emt 0:00:00]} Be5+ {[%emt 0:00:09]} 32. Kh3 {[%emt 0:00:00]} Qc3+ {[%emt 0:00:08]} 0-1

[Event "Eurasia Open Cup 2019"]
[Site "Ekaterinburg"]
[Date "2019.08.07"]
[Round "7.15"]
[White "Zhigalko, Andrey"]
[Black "Akhtariev, Andrey"]
[Result "1-0"]
[ECO "C42"]
[WhiteElo "2549"]
[BlackElo "2243"]
[Annotator "ChessBase"]
[PlyCount "99"]
[EventDate "2019.07.31"]
[EventType "swiss"]
[EventCountry "RUS"]
[SourceTitle "playchess.com"]
[Source "ChessBase"]
[SourceQuality "1"]
[TimeControl "5400+30"]

1. e4 {[%emt 0:00:00]} e5 {[%emt 0:00:00]} 2. Nf3 {[%emt 0:00:00]} Nf6 {[%emt 0:00:00]} 3. Nc3 {[%emt 0:03:18]} Bb4 {[%emt 0:00:00]} 4. Nxe5 {[%emt 0:03:07]} O-O {[%emt 0:00:30]} 5. Be2 {[%emt 0:01:00]} Re8 {[%emt 0:00:17]} 6. Nd3 {[%emt 0:00:17]} Bxc3 {[%emt 0:00:08]} 7. dxc3 {[%emt 0:00:07]} Nxe4 {[%emt 0:00:00]} 8. O-O {[%emt 0:02:58]} d6 {[%emt 0:01:39]} 9. Re1 {[%emt 0:02:36]} Bf5 {[%emt 0:01:22]} 10. Bf1 {[%emt 0:04:55]} Nc6 {[%emt 0:10:03]} 11. Bf4 {[%emt 0:07:16]} Qd7 {[%emt 0:01:52]} 12. h3 {[%emt 0:04:39]} h6 {[%emt 0:03:43]} 13. a4 {[%emt 0:03:45]} Re7 {[%emt 0:03:48]} 14. a5 {[%emt 0:07:28]} a6 {[%emt 0:00:51]} 15. Nb4 {[%emt 0:05:00]} Nxb4 {[%emt 0:05:08]} 16. cxb4 {[%emt 0:00:06]} Rae8 {[%emt 0:02:02]} 17. c4 {[%emt 0:12:33]} Nf6 {[%emt 0:08:49]} 18. Rxe7 {[%emt 0:01:42]} Qxe7 {[%emt 0:00:43]} 19. b5 {[%emt 0:00:45]} Qe4 {[%emt 0:10:36]} 20. Be3 {[%emt 0:02:09]} Qe6 {[%emt 0:10:01]} 21. Ra3 {[%emt 0:04:13]} Nd7 {[%emt 0:01:53]} 22. b4 {[%emt 0:07:02]} Ne5 {[%emt 0:04:27]} 23. Rc3 {[%emt 0:00:27]} Qg6 {[%emt 0:06:15]} 24. Bd4 {[%emt 0:04:14]} Bc8 {[%emt 0:02:22]} 25. Rg3 {[%emt 0:03:01]} Qf5 {[%emt 0:01:27]} 26. Qd2 {[%emt 0:01:32]} Ng6 {[%emt 0:03:45]} 27. Kh2 {[%emt 0:05:26]} Qh5 {[%emt 0:02:19]} 28. Bc3 {[%emt 0:03:04]} Qh4 {[%emt 0:05:31]} 29. b6 {[%emt 0:01:17]} cxb6 {[%emt 0:00:50]} 30. axb6 {[%emt 0:00:00]} Qe7 {[%emt 0:03:42]} 31. Bd3 {[%emt 0:01:10]} Qe6 {[%emt 0:00:03]} 32. f4 {[%emt 0:02:34]} f5 {[%emt 0:00:42]} 33. Bb1 {[%emt 0:01:31]} Kh7 {[%emt 0:00:40]} 34. Qd4 {[%emt 0:00:53]} Re7 {[%emt 0:00:50]} 35. Bc2 {[%emt 0:01:59]} Bd7 {[%emt 0:02:44]} 36. Bd1 {[%emt 0:00:33]} Be8 {[%emt 0:01:09]} 37. Bf3 {[%emt 0:00:48]} Qd7 {[%emt 0:00:28]} 38. Bd5 {[%emt 0:00:46]} Nf8 {[%emt 0:01:46]} 39. c5 {[%emt 0:02:11]} dxc5 {[%emt 0:00:13]} 40. bxc5 {[%emt 0:00:05]} Bg6 {[%emt 0:00:12]} 41. Qc4 {[%emt 0:01:00]} Qd8 {[%emt 0:02:36]} 42. Be5 {[%emt 0:00:42]} a5 {[%emt 0:00:44]} 43. Bd6 {[%emt 0:00:49]} Rd7 {[%emt 0:00:10]} 44. Bc7 {[%emt 0:01:50]} Qc8 {[%emt 0:01:07]} 45. Bxb7 {[%emt 0:00:34]} Qxb7 {[%emt 0:00:34]} 46. c6 {[%emt 0:00:32]} Qc8 {[%emt 0:00:18]} 47. cxd7 {[%emt 0:00:00]} Nxd7 {[%emt 0:00:05]} 48. Qe6 {[%emt 0:00:29]} Be8 {[%emt 0:01:11]} 49. Qxf5+ {[%emt 0:00:11]} Kg8 {[%emt 0:00:05]} 50. Be5 {[%emt 0:00:59]} 1-0

[Event "Eurasia Open Cup 2019"]
[Site "Ekaterinburg"]
[Date "2019.08.07"]
[Round "7.16"]
[White "Vokhidov, Shamsiddin"]
[Black "Isanzhulov, Arystan"]
[Result "0-1"]
[ECO "B04"]
[WhiteElo "2515"]
[BlackElo "2278"]
[Annotator "ChessBase"]
[PlyCount "110"]
[EventDate "2019.07.31"]
[EventType "swiss"]
[EventCountry "RUS"]
[SourceTitle "playchess.com"]
[Source "ChessBase"]
[SourceQuality "1"]
[TimeControl "5400+30"]

1. e4 {[%emt 0:00:00]} Nf6 {[%emt 0:00:00]} 2. e5 {[%emt 0:00:00]} Nd5 {[%emt 0:00:00]} 3. d4 {[%emt 0:00:26]} d6 {[%emt 0:00:00]} 4. Nf3 {[%emt 0:00:00]} dxe5 {[%emt 0:00:00]} 5. Nxe5 {[%emt 0:00:56]} c6 {[%emt 0:00:00]} 6. Bd3 {[%emt 0:00:45]} g6 {[%emt 0:09:16]} 7. Qf3 {[%emt 0:11:44]} Be6 {[%emt 0:02:55]} 8. c3 {[%emt 0:02:18]} Nd7 {[%emt 0:05:36]} 9. Nxd7 {[%emt 0:00:47]} Qxd7 {[%emt 0:00:10]} 10. O-O {[%emt 0:00:05]} Bg7 {[%emt 0:05:21]} 11. Re1 {[%emt 0:03:22]} O-O {[%emt 0:08:25]} 12. Nd2 {[%emt 0:01:13]} Rad8 {[%emt 0:07:35]} 13. Ne4 {[%emt 0:04:53]} b6 {[%emt 0:00:32]} 14. Ng5 {[%emt 0:05:31]} Bg4 {[%emt 0:02:13]} 15. Qg3 {[%emt 0:00:01]} h6 {[%emt 0:12:06]} 16. Ne4 {[%emt 0:03:18]} f5 {[%emt 0:01:48]} 17. f3 {[%emt 0:06:37]} fxe4 {[%emt 0:01:03]} 18. fxe4 {[%emt 0:00:39]} Nf6 {[%emt 0:14:06]} 19. h3 {[%emt 0:01:44]} Bh5 {[%emt 0:00:09]} 20. e5 {[%emt 0:02:29]} Nd5 {[%emt 0:00:04]} 21. Qh4 {[%emt 0:02:37]} Kh8 {[%emt 0:12:25]} 22. g4 {[%emt 0:04:24]} Nf4 {[%emt 0:00:23]} 23. Bxf4 {[%emt 0:00:23]} Rxf4 {[%emt 0:00:03]} 24. Qg3 {[%emt 0:00:09]} g5 {[%emt 0:04:55]} 25. gxh5 {[%emt 0:00:06]} c5 {[%emt 0:05:27]} 26. Bc2 {[%emt 0:07:22]} Rdf8 {[%emt 0:03:10]} 27. e6 {[%emt 0:05:22]} Bxd4+ {[%emt 0:01:37]} 28. cxd4 {[%emt 0:00:07]} Qxd4+ {[%emt 0:00:03]} 29. Kh1 {[%emt 0:02:13]} Rf3 {[%emt 0:01:03]} 30. Qe5+ {[%emt 0:00:17]} Qxe5 {[%emt 0:00:43]} 31. Rxe5 {[%emt 0:00:01]} Rf2 {[%emt 0:01:18]} 32. Rc1 {[%emt 0:00:54]} R8f3 {[%emt 0:01:25]} 33. Kg1 {[%emt 0:01:12]} Rd2 {[%emt 0:00:15]} 34. Bf5 {[%emt 0:00:38]} Kg7 {[%emt 0:01:13]} 35. Bg4 {[%emt 0:00:59]} Rg3+ {[%emt 0:00:57]} 36. Kh1 {[%emt 0:00:00]} Rgg2 {[%emt 0:00:32]} 37. Rf5 {[%emt 0:02:44]} Rh2+ {[%emt 0:00:32]} 38. Kg1 {[%emt 0:00:01]} Rdg2+ {[%emt 0:00:26]} 39. Kf1 {[%emt 0:00:31]} Rxg4 {[%emt 0:00:05]} 40. Rf7+ {[%emt 0:00:30]} Kg8 {[%emt 0:00:32]} 41. hxg4 {[%emt 0:00:00]} Rh1+ {[%emt 0:00:00]} 42. Ke2 {[%emt 0:00:00]} Rxc1 {[%emt 0:00:07]} 43. Rxe7 {[%emt 0:00:00]} Rg1 {[%emt 0:01:02]} 44. Rxa7 {[%emt 0:02:53]} Rxg4 {[%emt 0:00:26]} 45. Ke3 {[%emt 0:00:04]} Kf8 {[%emt 0:00:26]} 46. Rh7 {[%emt 0:00:22]} Rh4 {[%emt 0:00:16]} 47. Rxh6 {[%emt 0:00:52]} Ke7 {[%emt 0:00:01]} 48. b3 {[%emt 0:00:19]} b5 {[%emt 0:00:56]} 49. Kd3 {[%emt 0:00:45]} Rd4+ {[%emt 0:00:33]} 50. Kc2 {[%emt 0:00:28]} Rh4 {[%emt 0:00:22]} 51. a3 {[%emt 0:00:22]} g4 {[%emt 0:01:09]} 52. Kd3 {[%emt 0:01:53]} g3 {[%emt 0:00:17]} 53. Ke2 {[%emt 0:00:34]} g2 {[%emt 0:00:59]} 54. Kf2 {[%emt 0:00:18]} Rg4 {[%emt 0:00:39]} 55. Rg6 {[%emt 0:01:08]} g1=Q+ {[%emt 0:00:06]} 0-1

[Event "Eurasia Open Cup 2019"]
[Site "Ekaterinburg"]
[Date "2019.08.07"]
[Round "7.17"]
[White "Bocharov, Dmitry"]
[Black "Pranizin, Gennady"]
[Result "1/2-1/2"]
[ECO "E60"]
[WhiteElo "2506"]
[BlackElo "2232"]
[Annotator "ChessBase"]
[PlyCount "99"]
[EventDate "2019.07.31"]
[EventType "swiss"]
[EventCountry "RUS"]
[SourceTitle "playchess.com"]
[Source "ChessBase"]
[SourceQuality "1"]
[TimeControl "5400+30"]

1. Nf3 {[%emt 0:00:00]} Nf6 {[%emt 0:00:00]} 2. g3 {[%emt 0:00:00]} g6 {[%emt 0:00:00]} 3. b3 {[%emt 0:00:07]} Bg7 {[%emt 0:01:00]} 4. Bb2 {[%emt 0:00:09]} d6 {[%emt 0:01:03]} 5. d4 {[%emt 0:00:45]} O-O {[%emt 0:00:40]} 6. Bg2 {[%emt 0:00:00]} c5 {[%emt 0:05:46]} 7. c4 {[%emt 0:02:08]} Ne4 {[%emt 0:02:06]} 8. O-O {[%emt 0:02:07]} Nc6 {[%emt 0:02:10]} 9. Nbd2 {[%emt 0:05:49]} Bf5 {[%emt 0:16:39]} 10. e3 {[%emt 0:04:11]} Qa5 {[%emt 0:03:53]} 11. Nxe4 {[%emt 0:11:45]} Bxe4 {[%emt 0:00:07]} 12. Qc1 {[%emt 0:10:33]} e5 {[%emt 0:14:11]} 13. d5 {[%emt 0:13:03]} Nb4 {[%emt 0:05:37]} 14. Bc3 {[%emt 0:03:26]} Qd8 {[%emt 0:00:53]} 15. a3 {[%emt 0:01:05]} Nd3 {[%emt 0:05:48]} 16. Qd2 {[%emt 0:08:10]} f5 {[%emt 0:03:12]} 17. Ne1 {[%emt 0:05:08]} Bxg2 {[%emt 0:05:38]} 18. Kxg2 {[%emt 0:06:00]} Nxe1+ {[%emt 0:00:00]} 19. Raxe1 {[%emt 0:00:03]} Qd7 {[%emt 0:00:00]} 20. e4 {[%emt 0:01:55]} b5 {[%emt 0:13:47]} 21. Qd3 {[%emt 0:00:30]} Rab8 {[%emt 0:02:06]} 22. Rb1 {[%emt 0:02:11]} fxe4 {[%emt 0:01:28]} 23. Qxe4 {[%emt 0:00:16]} Qf5 {[%emt 0:01:35]} 24. Qxf5 {[%emt 0:12:50]} gxf5 {[%emt 0:00:11]} 25. Rfc1 {[%emt 0:00:20]} Rfc8 {[%emt 0:05:47]} 26. Bd2 {[%emt 0:01:21]} Kf7 {[%emt 0:03:25]} 27. b4 {[%emt 0:03:25]} cxb4 {[%emt 0:01:07]} 28. Rxb4 {[%emt 0:00:07]} bxc4 {[%emt 0:02:12]} 29. Rxb8 {[%emt 0:01:37]} Rxb8 {[%emt 0:00:03]} 30. Rxc4 {[%emt 0:00:34]} Rb5 {[%emt 0:03:31]} 31. Rc7+ {[%emt 0:00:22]} Kg6 {[%emt 0:00:03]} 32. Rxa7 {[%emt 0:00:00]} Rxd5 {[%emt 0:00:02]} 33. Bb4 {[%emt 0:00:13]} e4 {[%emt 0:00:15]} 34. a4 {[%emt 0:02:05]} Rd1 {[%emt 0:01:08]} 35. a5 {[%emt 0:00:54]} Be5 {[%emt 0:01:01]} 36. Rd7 {[%emt 0:02:14]} Ra1 {[%emt 0:00:12]} 37. f4 {[%emt 0:01:21]} exf3+ {[%emt 0:00:12]} 38. Kxf3 {[%emt 0:00:02]} Ra4 {[%emt 0:00:20]} 39. Bd2 {[%emt 0:00:55]} Ra3+ {[%emt 0:00:18]} 40. Ke2 {[%emt 0:00:08]} h5 {[%emt 0:00:40]} 41. Rd8 {[%emt 0:00:31]} Kf7 {[%emt 0:00:33]} 42. Ra8 {[%emt 0:00:52]} Ke6 {[%emt 0:00:12]} 43. Be3 {[%emt 0:00:02]} Kd5 {[%emt 0:00:38]} 44. Bc1 {[%emt 0:00:45]} Ra1 {[%emt 0:00:17]} 45. Bd2 {[%emt 0:00:14]} Ra2 {[%emt 0:00:59]} 46. Kd3 {[%emt 0:00:50]} Ra3+ {[%emt 0:00:06]} 47. Ke2 {[%emt 0:00:10]} Ra2 {[%emt 0:00:05]} 48. Kd3 {[%emt 0:01:16]} Ra3+ {[%emt 0:00:06]} 49. Ke2 {[%emt 0:00:16]} Ra2 {[%emt 0:00:37]} 50. Kd3 {[%emt 0:00:32]} 1/2-1/2

[Event "Eurasia Open Cup 2019"]
[Site "Ekaterinburg"]
[Date "2019.08.07"]
[Round "7.18"]
[White "Karpeshov, Oleg"]
[Black "Kostenko, Petr"]
[Result "1-0"]
[ECO "A13"]
[WhiteElo "2286"]
[BlackElo "2471"]
[Annotator "ChessBase"]
[PlyCount "147"]
[EventDate "2019.07.31"]
[EventType "swiss"]
[EventCountry "RUS"]
[SourceTitle "playchess.com"]
[Source "ChessBase"]
[SourceQuality "1"]
[TimeControl "5400+30"]

1. Nf3 {[%emt 0:12:17]} Nf6 {[%emt 0:00:00]} 2. c4 {[%emt 0:00:13]} e6 {[%emt 0:00:19]} 3. g3 {[%emt 0:03:41]} d5 {[%emt 0:00:08]} 4. Bg2 {[%emt 0:00:00]} a6 {[%emt 0:00:20]} 5. b3 {[%emt 0:01:09]} Be7 {[%emt 0:02:15]} 6. Bb2 {[%emt 0:01:49]} O-O {[%emt 0:00:06]} 7. O-O {[%emt 0:01:00]} c6 {[%emt 0:00:10]} 8. d3 {[%emt 0:03:25]} b5 {[%emt 0:00:08]} 9. Nbd2 {[%emt 0:00:18]} Bb7 {[%emt 0:00:19]} 10. e4 {[%emt 0:02:48]} c5 {[%emt 0:00:04]} 11. Qe2 {[%emt 0:08:58]} bxc4 {[%emt 0:01:38]} 12. dxc4 {[%emt 0:01:27]} d4 {[%emt 0:05:01]} 13. Ne5 {[%emt 0:03:39]} Qc7 {[%emt 0:00:18]} 14. f4 {[%emt 0:00:00]} a5 {[%emt 0:00:45]} 15. a4 {[%emt 0:01:39]} Ra6 {[%emt 0:02:29]} 16. Nd3 {[%emt 0:06:59]} Rb6 {[%emt 0:00:13]} 17. Ba3 {[%emt 0:13:20]} Nfd7 {[%emt 0:05:01]} 18. h4 {[%emt 0:01:17]} Na6 {[%emt 0:05:45]} 19. Rab1 {[%emt 0:00:09]} Rb8 {[%emt 0:00:15]} 20. Bh3 {[%emt 0:06:51]} h6 {[%emt 0:02:47]} 21. Kh2 {[%emt 0:04:25]} Bc6 {[%emt 0:01:54]} 22. e5 {[%emt 0:02:40]} Nf8 {[%emt 0:02:49]} 23. f5 {[%emt 0:03:13]} exf5 {[%emt 0:00:16]} 24. Bxf5 {[%emt 0:00:40]} Bd7 {[%emt 0:03:21]} 25. Be4 {[%emt 0:03:13]} Bc6 {[%emt 0:03:35]} 26. Bd5 {[%emt 0:03:58]} Be8 {[%emt 0:01:47]} 27. Rf2 {[%emt 0:03:35]} Ne6 {[%emt 0:02:16]} 28. Qg4 {[%emt 0:00:59]} Qd8 {[%emt 0:01:58]} 29. Rbf1 {[%emt 0:02:26]} Nac7 {[%emt 0:00:00]} 30. Be4 {[%emt 0:00:04]} Qd7 {[%emt 0:03:44]} 31. Qd1 {[%emt 0:05:03]} Qd8 {[%emt 0:01:19]} 32. Kg2 {[%emt 0:00:14]} Bf8 {[%emt 0:01:38]} 33. Kh2 {[%emt 0:00:43]} Qd7 {[%emt 0:01:04]} 34. Bf5 {[%emt 0:00:10]} Qe7 {[%emt 0:01:24]} 35. Bc1 {[%emt 0:00:27]} Nd8 {[%emt 0:00:34]} 36. Qg4 {[%emt 0:00:53]} Kh8 {[%emt 0:01:11]} 37. Be4 {[%emt 0:00:10]} Bc6 {[%emt 0:00:39]} 38. Bf5 {[%emt 0:00:14]} Be8 {[%emt 0:03:58]} 39. Be4 {[%emt 0:00:10]} Kg8 {[%emt 0:05:59]} 40. Kg1 {[%emt 0:00:46]} Bd7 {[%emt 0:05:53]} 41. Qf3 {[%emt 0:00:15]} Bh3 {[%emt 0:04:06]} 42. Re1 {[%emt 0:00:17]} Qd7 {[%emt 0:02:42]} 43. Kh2 {[%emt 0:01:22]} Bg4 {[%emt 0:00:23]} 44. Qg2 {[%emt 0:00:00]} Rxb3 {[%emt 0:01:52]} 45. Nxb3 {[%emt 0:00:00]} Rxb3 {[%emt 0:00:03]} 46. Bd2 {[%emt 0:01:46]} Qxa4 {[%emt 0:00:23]} 47. Rc1 {[%emt 0:00:00]} Be6 {[%emt 0:01:27]} 48. Bf4 {[%emt 0:00:01]} Qd7 {[%emt 0:01:10]} 49. Bd2 {[%emt 0:00:56]} a4 {[%emt 0:01:26]} 50. Ba5 {[%emt 0:00:00]} a3 {[%emt 0:00:00]} 51. Nf4 {[%emt 0:00:27]} Bg4 {[%emt 0:01:08]} 52. Bc2 {[%emt 0:01:38]} Rb8 {[%emt 0:03:30]} 53. Bxc7 {[%emt 0:00:09]} Qxc7 {[%emt 0:00:16]} 54. Qe4 {[%emt 0:00:37]} g6 {[%emt 0:05:46]} 55. Nd5 {[%emt 0:00:21]} Qa7 {[%emt 0:00:05]} 56. Qxg4 {[%emt 0:01:19]} Rb2 {[%emt 0:00:06]} 57. Qf3 {[%emt 0:00:41]} Bg7 {[%emt 0:00:44]} 58. Bd3 {[%emt 0:00:40]} Bxe5 {[%emt 0:00:22]} 59. Rxb2 {[%emt 0:00:19]} axb2 {[%emt 0:00:04]} 60. Rb1 {[%emt 0:00:07]} Qb8 {[%emt 0:00:18]} 61. Qg2 {[%emt 0:00:54]} Nc6 {[%emt 0:00:16]} 62. Rxb2 {[%emt 0:00:00]} Qd8 {[%emt 0:00:30]} 63. Kh1 {[%emt 0:00:00]} Bd6 {[%emt 0:00:38]} 64. Rf2 {[%emt 0:01:26]} Ne5 {[%emt 0:00:00]} 65. Nf6+ {[%emt 0:00:23]} Kg7 {[%emt 0:00:07]} 66. Qe4 {[%emt 0:00:00]} Qc8 {[%emt 0:01:36]} 67. Kg2 {[%emt 0:00:21]} Qe6 {[%emt 0:00:00]} 68. h5 {[%emt 0:00:11]} Be7 {[%emt 0:00:15]} 69. Nd5 {[%emt 0:00:47]} Nxd3 {[%emt 0:01:50]} 70. Qxd3 {[%emt 0:00:00]} Bg5 {[%emt 0:00:11]} 71. hxg6 {[%emt 0:00:33]} fxg6 {[%emt 0:00:59]} 72. Qf3 {[%emt 0:00:19]} Qe8 {[%emt 0:00:04]} 73. Nc7 {[%emt 0:00:14]} Qe7 {[%emt 0:00:00]} 74. Ne6+ {[%emt 0:00:28]} 1-0

[Event "Eurasia Open Cup 2019"]
[Site "Ekaterinburg"]
[Date "2019.08.07"]
[Round "7.19"]
[White "Kezin, Roman"]
[Black "Novikov, Evgenij"]
[Result "1/2-1/2"]
[ECO "D94"]
[WhiteElo "2470"]
[BlackElo "2164"]
[Annotator "ChessBase"]
[PlyCount "88"]
[EventDate "2019.07.31"]
[EventType "swiss"]
[EventCountry "RUS"]
[SourceTitle "playchess.com"]
[Source "ChessBase"]
[SourceQuality "1"]
[TimeControl "5400+30"]

1. d4 {[%emt 0:00:00]} d5 {[%emt 0:00:00]} 2. c4 {[%emt 0:00:00]} c6 {[%emt 0:00:00]} 3. Nc3 {[%emt 0:00:00]} Nf6 {[%emt 0:00:40]} 4. e3 {[%emt 0:00:40]} a6 {[%emt 0:01:21]} 5. Nf3 {[%emt 0:06:22]} g6 {[%emt 0:02:37]} 6. Be2 {[%emt 0:09:35]} Bg7 {[%emt 0:01:02]} 7. O-O {[%emt 0:00:06]} O-O {[%emt 0:02:14]} 8. Bd2 {[%emt 0:08:33]} Bg4 {[%emt 0:11:00]} 9. cxd5 {[%emt 0:02:05]} cxd5 {[%emt 0:00:23]} 10. Qb3 {[%emt 0:01:06]} Nc6 {[%emt 0:12:40]} 11. h3 {[%emt 0:08:20]} Bxf3 {[%emt 0:08:17]} 12. Bxf3 {[%emt 0:00:54]} e6 {[%emt 0:00:00]} 13. Na4 {[%emt 0:10:36]} Na5 {[%emt 0:03:49]} 14. Bxa5 {[%emt 0:02:19]} Qxa5 {[%emt 0:00:00]} 15. Rfc1 {[%emt 0:00:03]} Nd7 {[%emt 0:05:08]} 16. Nc5 {[%emt 0:01:09]} Nxc5 {[%emt 0:00:00]} 17. Rxc5 {[%emt 0:00:00]} b5 {[%emt 0:00:14]} 18. Rac1 {[%emt 0:09:21]} Rfd8 {[%emt 0:02:41]} 19. a3 {[%emt 0:13:03]} Bf8 {[%emt 0:00:51]} 20. Rc7 {[%emt 0:01:24]} Bd6 {[%emt 0:00:57]} 21. R7c6 {[%emt 0:00:10]} Kg7 {[%emt 0:01:55]} 22. g3 {[%emt 0:00:00]} Rd7 {[%emt 0:00:57]} 23. R1c2 {[%emt 0:02:18]} Raa7 {[%emt 0:02:19]} 24. Kg2 {[%emt 0:00:06]} Qd8 {[%emt 0:01:51]} 25. h4 {[%emt 0:09:44]} h5 {[%emt 0:01:07]} 26. e4 {[%emt 0:09:14]} dxe4 {[%emt 0:02:37]} 27. Bxe4 {[%emt 0:00:02]} Be7 {[%emt 0:00:07]} 28. d5 {[%emt 0:03:13]} exd5 {[%emt 0:02:34]} 29. Rc8 {[%emt 0:00:32]} Qb6 {[%emt 0:00:10]} 30. Bxd5 {[%emt 0:00:00]} Bf6 {[%emt 0:02:39]} 31. Bf3 {[%emt 0:02:42]} Rac7 {[%emt 0:00:44]} 32. Qb4 {[%emt 0:01:14]} Rxc8 {[%emt 0:01:23]} 33. Rxc8 {[%emt 0:00:02]} Qd6 {[%emt 0:00:19]} 34. Qe4 {[%emt 0:00:44]} Rc7 {[%emt 0:00:30]} 35. Ra8 {[%emt 0:00:28]} Re7 {[%emt 0:03:51]} 36. Qc2 {[%emt 0:00:31]} Rc7 {[%emt 0:00:22]} 37. Qe4 {[%emt 0:00:36]} Re7 {[%emt 0:00:06]} 38. Qc2 {[%emt 0:00:45]} Rc7 {[%emt 0:00:05]} 39. Qe4 {[%emt 0:00:31]} Re7 {[%emt 0:00:37]} 40. Qc6 {[%emt 0:00:43]} Qxc6 {[%emt 0:00:45]} 41. Bxc6 {[%emt 0:00:00]} Bxb2 {[%emt 0:00:00]} 42. Rxa6 {[%emt 0:00:00]} Re6 {[%emt 0:00:00]} 43. Bxb5 {[%emt 0:00:00]} Rxa6 {[%emt 0:00:00]} 44. Bxa6 {[%emt 0:00:00]} Bxa3 {[%emt 0:00:31]} 1/2-1/2